bitfinex/quotes_BTCUSD_20241010
["timestamp","ask_amount","ask_price","bid_price","bid_amount"]
[1728577808174,0.06577736,60611.0,60606.0,0.0921]
[1728577808397,0.06577736,60611.0,60605.0,0.165001]
[1728577808398,0.164994,60609.0,60605.0,0.165001]
[1728577808631,0.16083764,60611.0,60604.0,0.33001]
[1728577808632,0.164989,60610.0,60607.0,0.164996]
[1728577808894,0.16083764,60611.0,60608.0,0.329986]
[1728577809141,0.16083764,60611.0,60610.0,0.164989]
[1728577809878,0.32582464,60611.0,60608.0,0.164992]
[1728577810127,0.16183764,60611.0,60608.0,0.329989]
[1728577810370,0.16183764,60611.0,60610.0,0.164989]
[1728577810371,0.001,60611.0,60610.0,0.164989]
[1728577810596,0.164977,60615.0,60612.0,0.164983]
[1728577810818,0.16083764,60614.0,60612.0,0.164983]
[1728577811033,0.16083764,60614.0,60609.0,0.16499]
[1728577811245,0.002,60611.0,60609.0,0.16499]
[1728577811475,0.002,60611.0,60610.0,0.164989]
[1728577811817,0.002,60611.0,60608.0,0.164994]
[1728577812030,0.16083764,60610.0,60607.0,0.164995]
[1728577812244,0.164998,60607.0,60604.0,0.165005]
[1728577812445,0.164996,60608.0,60604.0,0.165005]
[1728577812656,0.164996,60608.0,60603.0,0.330013]
[1728577812866,0.164996,60608.0,60595.0,0.1811]
[1728577812867,0.165012,60602.0,60595.0,0.1811]
[1728577813080,0.49086664,60601.0,60595.0,0.0983]
[1728577813307,0.330038,60599.0,60591.0,0.330077]
[1728577813533,0.16503,60595.0,60592.0,0.165037]
[1728577813739,0.16083764,60598.0,60589.0,0.0983]
[1728577813740,0.16083764,60598.0,60591.0,0.330081]
[1728577813951,0.18745151,60603.0,60589.0,0.1033]
[1728577814158,0.409998,60607.0,60600.0,0.165015]
[1728577814159,0.40866387,60602.0,60600.0,0.165015]
[1728577814362,0.40866387,60602.0,60601.0,0.165013]
[1728577814977,0.16183764,60602.0,60597.0,0.331046]
[1728577815231,0.2440235,60602.0,60597.0,0.331046]
[1728577815472,0.2430235,60602.0,60598.0,0.330041]
[1728577815715,0.2430235,60602.0,60600.0,0.165013]
[1728577815969,0.16083764,60602.0,60598.0,0.165021]
[1728577816212,0.165029,60596.0,60592.0,0.165035]
[1728577816677,0.330042,60599.0,60592.0,0.165035]
[1728577816678,0.16503,60595.0,60592.0,0.165035]
[1728577817335,0.16503,60595.0,60590.0,0.330082]
[1728577817336,0.24682623,60611.0,60601.0,0.005]
[1728577817555,0.24682623,60611.0,60610.0,0.164989]
[1728577818013,0.24682623,60611.0,60610.0,0.17346372]
[1728577818249,0.24682623,60611.0,60610.0,0.00847472]
[1728577818470,0.164986,60611.0,60610.0,0.00847472]
[1728577818677,0.164986,60611.0,60600.0,0.165015]
[1728577818678,0.165007,60604.0,60600.0,0.165015]
[1728577818892,0.32584364,60604.0,60600.0,0.165015]
[1728577819106,0.001,60602.0,60598.0,0.495061]
[1728577819325,0.166011,60602.0,60596.0,0.33005]
[1728577819542,0.16083764,60601.0,60592.0,0.0777]
[1728577819765,0.16083764,60601.0,60600.0,0.165016]
[1728577819966,0.16083764,60601.0,60599.0,0.165018]
[1728577820184,0.16083764,60601.0,60598.0,0.330039]
[1728577820185,0.17872492,60601.0,60598.0,0.330039]
[1728577820440,0.34373892,60601.0,60592.0,0.0777]
[1728577820666,0.34373892,60601.0,60595.0,0.330056]
[1728577820667,0.17872492,60601.0,60595.0,0.330056]
[1728577820936,0.17872492,60601.0,60598.0,0.165021]
[1728577821170,0.17872492,60601.0,60598.0,0.16502]
[1728577821422,0.17872492,60601.0,60594.0,0.330064]
[1728577821641,0.17872492,60601.0,60597.0,0.165022]
[1728577821642,0.34373992,60601.0,60597.0,0.165022]
[1728577821859,0.34373892,60601.0,60597.0,0.165022]
[1728577822119,0.34373892,60601.0,60598.0,0.16502]
[1728577822120,0.09697024,60600.0,60598.0,0.16502]
[1728577822337,0.09697024,60600.0,60597.0,0.165023]
[1728577822554,0.09697024,60600.0,60599.0,0.165019]
[1728577822776,0.09697024,60600.0,60596.0,0.330052]
[1728577823031,0.09697024,60600.0,60598.0,0.330043]
[1728577823254,0.09697024,60600.0,60599.0,0.165019]
[1728577823475,0.17872492,60601.0,60600.0,0.165016]
[1728577823681,0.17872492,60601.0,60598.0,0.33004]
[1728577823890,0.17872492,60601.0,60600.0,0.165016]
[1728577824113,0.17872492,60601.0,60597.0,0.166024]
[1728577824398,0.17872492,60601.0,60593.0,0.330067]
[1728577824635,0.51749551,60598.0,60587.0,0.081318]
[1728577824850,0.51749551,60598.0,60590.0,0.330087]
[1728577824851,0.16503,60595.0,60590.0,0.330087]
[1728577825065,0.16503,60595.0,60592.0,0.165037]
[1728577825280,0.49089064,60597.0,60594.0,0.165031]
[1728577825281,0.32586364,60597.0,60594.0,0.165031]
[1728577825505,0.07597124,60596.0,60594.0,0.165031]
[1728577825728,0.07597124,60596.0,60593.0,0.00837545]
[1728577825939,0.07597124,60596.0,60594.0,0.165031]
[1728577826169,0.07597124,60596.0,60594.0,0.17339868]
[1728577826399,0.16603,60595.0,60594.0,0.00836768]
[1728577826838,0.16603,60595.0,60591.0,0.165039]
[1728577826839,0.16183764,60595.0,60591.0,0.165039]
[1728577827038,0.166031,60595.0,60594.0,0.00836768]
[1728577827469,0.32586864,60595.0,60588.0,0.330912]
[1728577827689,0.18745151,60598.0,60594.0,0.00836768]
[1728577827879,0.330052,60597.0,60594.0,0.00836768]
[1728577828116,0.16603,60595.0,60594.0,0.003]
[1728577828340,0.32686764,60595.0,60594.0,0.003]
[1728577828572,0.165036,60593.0,60588.0,0.330912]
[1728577828788,0.16083764,60592.0,60590.0,0.165043]
[1728577829514,0.16083764,60592.0,60591.0,0.165041]
[1728577829752,0.32587664,60592.0,60589.0,0.165045]
[1728577829966,0.165042,60591.0,60588.0,0.165866]
[1728577830182,0.165041,60591.0,60588.0,0.165867]
[1728577830393,0.32587564,60592.0,60589.0,0.165045]
[1728577830632,0.32587564,60592.0,60589.0,0.01237094]
[1728577830633,0.165043,60590.0,60589.0,0.01237094]
[1728577830877,0.32588064,60590.0,60589.0,0.01237094]
[1728577831110,0.51333215,60590.0,60589.0,0.01237094]
[1728577831345,0.51333215,60590.0,60588.0,0.000818]
[1728577831346,0.265046,60589.0,60588.0,0.000818]
[1728577831592,0.54323256,60589.0,60588.0,0.000818]
[1728577832355,0.54323256,60589.0,60588.0,0.01318267]
[1728577833560,0.76368407,60589.0,60588.0,0.01318267]
[1728577833801,0.84398407,60589.0,60588.0,0.01318267]
[1728577834053,0.83598407,60589.0,60588.0,0.01318267]
[1728577834292,0.84798407,60589.0,60588.0,0.01318267]
[1728577834517,0.66853256,60589.0,60588.0,0.000818]
[1728577835034,0.65853256,60589.0,60588.0,0.000818]
[1728577835512,0.85998407,60589.0,60588.0,0.000818]
[1728577835744,0.67253256,60589.0,60588.0,0.000818]
[1728577836018,0.54118364,60589.0,60588.0,0.000818]
[1728577836240,1.22418364,60589.0,60588.0,0.000818]
[1728577836453,1.25218364,60589.0,60588.0,0.000818]
[1728577836893,1.23818364,60589.0,60588.0,0.000818]
[1728577837325,0.53818364,60589.0,60588.0,0.000818]
[1728577837757,0.55218364,60589.0,60588.0,0.000818]
[1728577839796,0.52918364,60589.0,60588.0,0.000818]
[1728577840898,0.51518364,60589.0,60588.0,0.000818]
[1728577841139,0.55218364,60589.0,60588.0,0.000818]
[1728577841836,0.73963515,60589.0,60588.0,0.000818]
[1728577842059,1.00474176,60589.0,60588.0,0.000818]
[1728577842547,0.97674176,60589.0,60588.0,0.000818]
[1728577842758,1.67674176,60589.0,60588.0,0.000818]
[1728577842983,1.69074176,60589.0,60588.0,0.000818]
[1728577843715,1.70474176,60589.0,60588.0,0.000818]
[1728577843933,1.69074176,60589.0,60588.0,0.000818]
[1728577844380,1.70474176,60589.0,60588.0,0.000818]
[1728577846655,0.293049,60588.0,60587.0,0.000818]
[1728577846891,1.39159325,60588.0,60587.0,0.000818]
[1728577847791,1.23078664,60588.0,60587.0,0.000818]
[1728577848651,1.24478664,60588.0,60587.0,0.000818]
[1728577848865,1.27065409,60588.0,60587.0,0.000818]
[1728577849307,1.27965409,60588.0,60587.0,0.000818]
[1728577850012,0.7671056,60588.0,60587.0,0.000818]
[1728577850228,1.17973844,60588.0,60587.0,0.000818]
[1728577850448,0.376154,60586.0,60585.0,0.0169311]
[1728577850666,0.376154,60586.0,60581.0,0.0002]
[1728577850667,0.267065,60582.0,60581.0,0.0002]
[1728577850884,0.72645415,60582.0,60581.0,0.0002]
[1728577851111,0.98046076,60582.0,60581.0,0.0002]
[1728577852001,0.97846076,60582.0,60581.0,0.0002]
[1728577852211,0.99146076,60582.0,60581.0,0.0002]
[1728577852656,0.83065415,60582.0,60581.0,0.0002]
[1728577852882,0.73745415,60582.0,60581.0,0.001018]
[1728577853100,5.08261115,60582.0,60581.0,0.001018]
[1728577853317,5.17551115,60582.0,60581.0,0.001018]
[1728577853531,5.17551115,60582.0,60561.0,0.081119]
[1728577853532,0.72049802,60571.0,60561.0,0.001019]
[1728577853751,0.88133566,60571.0,60561.0,0.001019]
[1728577854014,0.90433566,60571.0,60561.0,0.001019]
[1728577854237,0.93520918,60571.0,60561.0,0.001019]
[1728577854465,0.005,60569.0,60554.0,0.074538]
[1728577854675,0.18745151,60561.0,60559.0,0.24682623]
[1728577854890,0.165129,60559.0,60555.0,0.00875349]
[1728577855106,0.32596964,60558.0,60554.0,0.074538]
[1728577855366,0.32596964,60558.0,60556.0,0.00874571]
[1728577855581,0.32596964,60558.0,60555.0,0.00875349]
[1728577855794,0.16083764,60558.0,60554.0,0.074538]
[1728577856006,0.16083764,60558.0,60556.0,0.00874571]
[1728577856007,0.32597064,60558.0,60556.0,0.00874571]
[1728577856218,0.32597064,60558.0,60555.0,0.00875349]
[1728577856433,0.01620497,60557.0,60554.0,0.074538]
[1728577856650,0.01620497,60557.0,60556.0,0.00874571]
[1728577857090,0.165128,60559.0,60554.0,0.074538]
[1728577857308,0.006,60561.0,60556.0,0.00874571]
[1728577857528,0.165126,60560.0,60554.0,0.239678]
[1728577857754,0.16083764,60559.0,60557.0,0.00874875]
[1728577857997,0.16083764,60559.0,60554.0,0.074538]
[1728577857998,0.16083764,60559.0,60558.0,0.25603]
[1728577858225,0.34828915,60559.0,60558.0,0.00874088]
[1728577858439,0.51341715,60559.0,60558.0,0.00874088]
[1728577858653,0.165157,60549.0,60542.0,0.000819]
[1728577858886,0.16083764,60548.0,60545.0,0.165165]
[1728577859106,0.16083764,60548.0,60543.0,0.33919432]
[1728577859340,0.16083764,60548.0,60546.0,0.00883197]
[1728577859554,0.24682623,60547.0,60543.0,0.16517]
[1728577859767,0.16083764,60546.0,60542.0,0.000819]
[1728577859980,0.18745151,60551.0,60543.0,0.165171]
[1728577859981,0.330308,60550.0,60543.0,0.165171]
[1728577860195,0.16083764,60549.0,60545.0,0.165165]
[1728577860410,0.32599364,60549.0,60544.0,0.165168]
[1728577860633,0.32599264,60549.0,60544.0,0.165168]
[1728577861068,0.16083764,60549.0,60545.0,0.165164]
[1728577861289,0.001,60548.0,60545.0,0.165164]
[1728577861515,0.16083764,60547.0,60542.0,0.000819]
[1728577861806,0.16083764,60547.0,60545.0,0.165163]
[1728577862052,0.24682623,60546.0,60544.0,0.165168]
[1728577862280,0.16083764,60547.0,60542.0,0.165992]
[1728577862502,0.16083764,60547.0,60544.0,0.165167]
[1728577862728,0.16083764,60547.0,60543.0,0.330343]
[1728577862729,0.02587685,60548.0,60547.0,0.16516]
[1728577862949,0.24682623,60553.0,60552.0,0.165147]
[1728577863668,0.165129,60559.0,60554.0,0.16514]
[1728577863880,0.32596964,60558.0,60555.0,0.09]
[1728577864096,0.16083764,60558.0,60555.0,0.09]
[1728577864979,0.51768851,60563.0,60558.0,0.165129]
[1728577864980,0.24682623,60561.0,60558.0,0.165129]
[1728577865197,0.16083764,60560.0,60557.0,0.330267]
[1728577865414,0.16083764,60560.0,60555.0,0.1652]
[1728577865630,0.007,60558.0,60557.0,0.165133]
[1728577865868,0.007,60558.0,60555.0,0.1652]
[1728577865869,0.007,60558.0,60555.0,0.330336]
[1728577866094,0.16083764,60560.0,60555.0,0.1652]
[1728577866348,0.34689417,60570.0,60555.0,0.1652]
[1728577866349,0.01,60561.0,60556.0,0.0033023]
[1728577866580,0.01,60561.0,60560.0,0.165125]
[1728577866801,0.01,60561.0,60560.0,0.16842719]
[1728577867075,0.01,60561.0,60560.0,0.34562719]
[1728577867299,0.01,60561.0,60560.0,0.342325]
[1728577867870,0.24682623,60567.0,60566.0,0.165109]
[1728577868388,0.16083764,60569.0,60567.0,0.165105]
[1728577869166,0.16083764,60569.0,60567.0,0.165106]
[1728577869686,0.16083764,60569.0,60566.0,0.165107]
[1728577869919,0.16083764,60569.0,60560.0,0.1772]
[1728577870163,0.16083764,60569.0,60567.0,0.165105]
[1728577870408,0.16083764,60569.0,60564.0,0.165114]
[1728577870409,0.32593864,60569.0,60564.0,0.165114]
[1728577870634,0.16583764,60569.0,60565.0,0.165111]
[1728577870872,0.18745151,60565.0,60560.0,0.1772]
[1728577871106,0.16083764,60564.0,60560.0,0.342324]
[1728577871335,0.16083764,60564.0,60561.0,0.00871848]
[1728577872143,0.165118,60563.0,60561.0,0.00871848]
[1728577872359,0.16083764,60563.0,60561.0,0.00871848]
[1728577872567,0.16083764,60562.0,60561.0,0.00871848]
[1728577872722,0.32595764,60562.0,60561.0,0.00871848]
[1728577873133,0.165122,60561.0,60560.0,0.002]
[1728577873328,0.27822346,60561.0,60560.0,0.002]
[1728577873509,0.16083764,60561.0,60560.0,0.01072896]
[1728577874130,0.16083764,60561.0,60560.0,0.00872896]
[1728577874346,0.16083764,60561.0,60558.0,0.165128]
[1728577874594,0.16083764,60560.0,60556.0,0.0795]
[1728577874825,0.16083764,60560.0,60558.0,0.165129]
[1728577875042,0.16083764,60560.0,60558.0,0.330261]
[1728577875254,0.165112,60565.0,60558.0,0.330261]
[1728577875482,0.32595264,60564.0,60559.0,0.165126]
[1728577875685,0.32595264,60564.0,60560.0,0.002]
[1728577875908,0.16083764,60564.0,60560.0,0.167123]
[1728577876114,0.32595164,60564.0,60560.0,0.162123]
[1728577876315,0.16083764,60564.0,60560.0,0.162123]
[1728577876516,0.16083764,60564.0,60561.0,0.16512]
[1728577876929,0.16083764,60564.0,60562.0,0.165119]
[1728577877169,0.165101,60569.0,60565.0,0.16511]
[1728577877366,0.330195,60571.0,60565.0,0.16511]
[1728577877367,0.16083764,60568.0,60565.0,0.330222]
[1728577877572,0.16083764,60568.0,60566.0,0.00868589]
[1728577878011,0.16083764,60568.0,60566.0,0.165108]
[1728577878335,0.16083764,60568.0,60563.0,0.330233]
[1728577878336,0.16083764,60568.0,60567.0,0.00867811]
[1728577878597,0.009,60568.0,60567.0,0.17378411]
[1728577878796,0.16983764,60568.0,60567.0,0.00867811]
[1728577879011,0.32594064,60568.0,60567.0,0.00867811]
[1728577879200,0.16083764,60568.0,60567.0,0.00867811]
[1728577879425,0.16983764,60568.0,60565.0,0.25651]
[1728577879652,0.16983764,60568.0,60567.0,0.00867811]
[1728577879880,0.16983764,60568.0,60566.0,0.17379389]
[1728577880100,0.16983764,60568.0,60567.0,0.00867811]
[1728577880582,0.16983764,60568.0,60567.0,0.17378411]
[1728577880803,0.16983764,60568.0,60567.0,0.00867811]
[1728577881056,0.16983764,60568.0,60567.0,0.17378411]
[1728577881276,0.17183764,60568.0,60567.0,0.165106]
[1728577881484,0.17183764,60568.0,60567.0,0.17378411]
[1728577881697,0.18083764,60568.0,60567.0,0.17378411]
[1728577882166,0.011,60568.0,60567.0,0.00867811]
[1728577882384,0.02,60568.0,60565.0,0.421621]
[1728577882606,0.02,60568.0,60567.0,0.17378094]
[1728577882846,0.01928563,60568.0,60567.0,0.165106]
[1728577883090,0.01028563,60568.0,60567.0,0.17378094]
[1728577883299,0.165094,60572.0,60568.0,0.165101]
[1728577883519,0.16083764,60571.0,60568.0,0.165101]
[1728577883761,0.16083764,60571.0,60569.0,0.17375938]
[1728577883970,0.32593364,60571.0,60569.0,0.00865938]
[1728577884224,0.32593364,60571.0,60565.0,0.421621]
[1728577884225,0.330196,60570.0,60565.0,0.0914]
[1728577884452,0.330196,60570.0,60561.0,0.33024]
[1728577884453,0.165111,60566.0,60562.0,0.165119]
[1728577884951,0.24682623,60564.0,60559.0,0.1061762]
[1728577885193,0.34828915,60565.0,60559.0,0.0069762]
[1728577885194,0.165125,60560.0,60559.0,0.0069762]
[1728577885408,0.16083764,60560.0,60559.0,0.0069762]
[1728577885625,0.18745151,60569.0,60559.0,0.0069762]
[1728577885846,0.40766387,60567.0,60559.0,0.0069762]
[1728577886102,0.24682623,60574.0,60565.0,0.079]
[1728577886362,0.24682623,60574.0,60565.0,0.244111]
[1728577886363,0.007,60566.0,60565.0,0.244111]
[1728577887135,0.007,60566.0,60561.0,0.429741]
[1728577887374,0.007,60566.0,60565.0,0.165111]
[1728577887646,0.007,60566.0,60562.0,0.330237]
[1728577887647,0.165098,60570.0,60566.0,0.165108]
[1728577887887,0.009,60568.0,60567.0,0.165104]
[1728577888140,0.009,60568.0,60561.0,0.0995]
[1728577888141,0.33494064,60568.0,60561.0,0.429741]
[1728577888391,0.006,60566.0,60565.0,0.165111]
[1728577888623,0.01,60566.0,60565.0,0.165111]
[1728577888879,0.004,60566.0,60565.0,0.165111]
[1728577889140,0.41394548,60573.0,60568.0,0.165101]
[1728577889141,0.165093,60572.0,60568.0,0.165101]
[1728577889377,0.175099,60570.0,60566.0,0.165107]
[1728577889619,0.004,60568.0,60566.0,0.165107]
[1728577890347,0.004,60568.0,60565.0,0.165111]
[1728577890588,0.165107,60567.0,60563.0,0.165117]
[1728577890844,0.165109,60566.0,60563.0,0.165115]
[1728577891124,0.49106264,60565.0,60561.0,0.0995]
[1728577891390,0.49106264,60565.0,60559.0,0.0069762]
[1728577891391,0.16083764,60565.0,60559.0,0.0069762]
[1728577891640,0.16512,60562.0,60559.0,0.0069762]
[1728577892180,0.165124,60561.0,60559.0,0.0069762]
[1728577892434,0.165124,60561.0,60560.0,0.00872735]
[1728577892698,0.165117,60563.0,60560.0,0.00872735]
[1728577892938,0.165121,60562.0,60560.0,0.00872735]
[1728577893179,0.165122,60561.0,60560.0,0.00872735]
[1728577893620,0.44928413,60561.0,60560.0,0.00872735]
[1728577893839,0.165125,60560.0,60559.0,0.0069762]
[1728577894076,0.32596264,60560.0,60559.0,0.0069762]
[1728577894296,0.32596264,60560.0,60559.0,0.01572413]
[1728577894486,0.47284587,60560.0,60559.0,0.0069762]
[1728577894943,0.47284587,60560.0,60559.0,0.01572413]
[1728577895670,0.59481415,60560.0,60559.0,0.01572413]
[1728577895878,0.74415034,60560.0,60559.0,0.0069762]
[1728577896100,0.69481415,60560.0,60559.0,0.0069762]
[1728577896371,0.58135969,60560.0,60559.0,0.0069762]
[1728577896613,0.58234677,60560.0,60559.0,0.0069762]
[1728577896833,0.66212161,60560.0,60559.0,0.0069762]
[1728577897766,0.67212161,60560.0,60559.0,0.0064762]
[1728577897993,0.68834724,60560.0,60559.0,0.0064762]
[1728577898222,0.69734724,60560.0,60559.0,0.0064762]
[1728577898658,0.69730883,60560.0,60559.0,0.0064762]
[1728577898878,0.64341056,60560.0,60559.0,0.0064762]
[1728577900588,0.56946484,60560.0,60559.0,0.0064762]
[1728577901030,0.57446484,60560.0,60559.0,0.0064762]
[1728577901251,0.64838414,60560.0,60559.0,0.0064762]
[1728577901476,0.56946484,60560.0,60559.0,0.0064762]
[1728577901937,0.48806484,60560.0,60559.0,0.0064762]
[1728577902615,0.38806484,60560.0,60559.0,0.0064762]
[1728577903992,0.37183921,60560.0,60559.0,0.0064762]
[1728577904218,0.34596264,60560.0,60559.0,0.0064762]
[1728577904484,0.18083764,60560.0,60559.0,0.0064762]
[1728577904737,0.18083764,60560.0,60559.0,0.0874762]
[1728577904980,0.02,60560.0,60559.0,0.26136394]
[1728577905234,0.02,60560.0,60559.0,0.36346617]
[1728577905465,0.185125,60560.0,60559.0,0.01523594]
[1728577905955,0.40790291,60560.0,60559.0,0.01523594]
[1728577906176,0.40790291,60560.0,60559.0,0.0072942]
[1728577906639,0.4337786,60560.0,60559.0,0.0072942]
[1728577907093,0.5030786,60560.0,60559.0,0.0072942]
[1728577907333,0.4990786,60560.0,60559.0,0.0072942]
[1728577907602,0.54836132,60560.0,60559.0,0.0072942]
[1728577907824,0.55136132,60560.0,60559.0,0.0072942]
[1728577908310,0.55936132,60560.0,60559.0,0.0072942]
[1728577909693,0.58236132,60560.0,60559.0,0.0072942]
[1728577911268,0.92133011,60560.0,60559.0,0.0072942]
[1728577911490,0.83244405,60560.0,60559.0,0.0072942]
[1728577911930,0.85108541,60560.0,60559.0,0.0072942]
[1728577912140,0.7278786,60560.0,60559.0,0.0072942]
[1728577912365,0.84108541,60560.0,60559.0,0.0072942]
[1728577912640,0.81643288,60560.0,60559.0,0.0072942]
[1728577912859,0.7178786,60560.0,60559.0,0.0072942]
[1728577913073,0.84108541,60560.0,60559.0,0.0072942]
[1728577913304,0.88822751,60560.0,60559.0,0.0072942]
[1728577913526,0.7650207,60560.0,60559.0,0.0072942]
[1728577913748,0.7318786,60560.0,60559.0,0.0072942]
[1728577913971,0.7298786,60560.0,60559.0,0.0072942]
[1728577914193,0.8424232,60560.0,60559.0,0.0072942]
[1728577914445,0.8444232,60560.0,60559.0,0.0072942]
[1728577915390,0.8304232,60560.0,60559.0,0.0072942]
[1728577915599,0.7298786,60560.0,60559.0,0.0072942]
[1728577915829,0.47983833,60560.0,60559.0,0.0072942]
[1728577916048,0.35396264,60560.0,60559.0,0.0072942]
[1728577917017,0.33996264,60560.0,60559.0,0.01607028]
[1728577917256,0.33996264,60560.0,60559.0,0.0072942]
[1728577917493,0.33996264,60560.0,60559.0,0.01607028]
[1728577917751,0.33996264,60560.0,60559.0,0.0072942]
[1728577918220,0.33996264,60560.0,60559.0,0.01607028]
[1728577918446,0.33996264,60560.0,60559.0,0.0072942]
[1728577918653,0.33996264,60560.0,60559.0,0.01607028]
[1728577918869,0.33996264,60560.0,60559.0,0.0072942]
[1728577919061,0.46038721,60560.0,60559.0,0.01607028]
[1728577919327,0.47438721,60560.0,60559.0,0.0072942]
[1728577920039,0.55182121,60560.0,60559.0,0.0072942]
[1728577920757,0.62697693,60560.0,60559.0,0.0072942]
[1728577920979,0.57769835,60560.0,60559.0,0.0072942]
[1728577921648,0.58269835,60560.0,60559.0,0.0072942]
[1728577921922,0.68469835,60560.0,60559.0,0.0072942]
[1728577922154,0.70769835,60560.0,60559.0,0.0072942]
[1728577922603,0.80625552,60560.0,60559.0,0.0072942]
[1728577923113,0.80621433,60560.0,60559.0,0.0072942]
[1728577923604,0.70769835,60560.0,60559.0,0.0072942]
[1728577924311,0.80621433,60560.0,60559.0,0.0072942]
[1728577925252,0.55727378,60560.0,60559.0,0.0072942]
[1728577925509,0.35559664,60560.0,60559.0,0.0072942]
[1728577926197,0.54304815,60560.0,60559.0,0.0072942]
[1728577929747,0.19047164,60560.0,60559.0,0.0072942]
[1728577930231,0.35559664,60560.0,60559.0,0.01607439]
[1728577930492,0.35559664,60560.0,60559.0,0.0072942]
[1728577931009,0.19047164,60560.0,60559.0,0.0072942]
[1728577931235,0.35559664,60560.0,60559.0,0.01606531]
[1728577931451,0.35559664,60560.0,60559.0,0.0072942]
[1728577931728,0.19047164,60560.0,60559.0,0.0072942]
[1728577931937,0.35559664,60560.0,60559.0,0.0072942]
[1728577932409,0.35559664,60560.0,60559.0,0.01605548]
[1728577932410,0.34159664,60560.0,60559.0,0.01605548]
[1728577932624,0.32759664,60560.0,60559.0,0.0072942]
[1728577932848,0.34159664,60560.0,60559.0,0.0072942]
[1728577933303,0.33859664,60560.0,60559.0,0.0072942]
[1728577934217,0.18147164,60560.0,60559.0,0.1819942]
[1728577934434,0.18147164,60560.0,60559.0,0.3471222]
[1728577934652,0.18147164,60560.0,60559.0,0.35588294]
[1728577934874,0.020634,60560.0,60559.0,0.19075494]
[1728577935312,0.009634,60560.0,60559.0,0.19075494]
[1728577935746,0.019634,60560.0,60559.0,0.19075494]
[1728577935967,0.019634,60560.0,60559.0,0.35588294]
[1728577936222,0.019634,60560.0,60559.0,0.19075494]
[1728577936223,0.34559664,60560.0,60559.0,0.19075494]
[1728577936481,0.34559664,60560.0,60559.0,0.01605494]
[1728577936995,0.019634,60560.0,60559.0,0.3471222]
[1728577937485,0.019634,60560.0,60559.0,0.35590795]
[1728577938716,0.011634,60560.0,60559.0,0.35590795]
[1728577938965,0.001634,60560.0,60559.0,0.35590795]
[1728577939180,0.002634,60560.0,60559.0,0.35590795]
[1728577939426,0.005634,60560.0,60559.0,0.35590795]
[1728577946946,0.005634,60560.0,60559.0,0.11277995]
[1728577947149,0.005634,60560.0,60559.0,0.01607995]
[1728577947277,0.005634,60560.0,60559.0,0.18120795]
[1728577948967,0.16647164,60560.0,60559.0,0.01607995]
[1728577951982,0.49502426,60560.0,60559.0,0.01607995]
[1728577952413,0.52089961,60560.0,60559.0,0.0072942]
[1728577953287,0.51689961,60560.0,60559.0,0.0072942]
[1728577953493,0.43997199,60560.0,60559.0,0.0072942]
[1728577954094,0.44997199,60560.0,60559.0,0.0072942]
[1728577954329,0.46647027,60560.0,60559.0,0.0072942]
[1728577956175,0.8132965,60560.0,60559.0,0.0072942]
[1728577956421,0.75527688,60560.0,60559.0,0.0072942]
[1728577957087,0.72940153,60560.0,60559.0,0.0072942]
[1728577957518,0.85264053,60560.0,60559.0,0.0072942]
[1728577957728,0.83464053,60560.0,60559.0,0.0072942]
[1728577958189,0.84864053,60560.0,60559.0,0.0072942]
[1728577958405,0.86264053,60560.0,60559.0,0.0072942]
[1728577958630,0.73940153,60560.0,60559.0,0.0072942]
[1728577958858,0.74140153,60560.0,60559.0,0.0072942]
[1728577961000,0.48258151,60558.0,60557.0,0.000818]
[1728577961215,0.64341915,60558.0,60557.0,0.000818]
[1728577961877,0.6692993,60558.0,60557.0,0.000818]
[1728577962596,0.6672993,60558.0,60557.0,0.000818]
[1728577962820,0.6812993,60558.0,60557.0,0.000818]
[1728577963299,0.8045018,60558.0,60557.0,0.000818]
[1728577963560,0.8165018,60558.0,60557.0,0.000818]
[1728577963994,0.97730841,60558.0,60557.0,0.000818]
[1728577964437,0.95432267,60558.0,60557.0,0.000818]
[1728577964664,0.83110591,60558.0,60557.0,0.000818]
[1728577965095,0.6702993,60558.0,60557.0,0.000818]
[1728577965314,0.6652993,60558.0,60557.0,0.000818]
[1728577965784,0.6672993,60558.0,60557.0,0.000818]
[1728577966037,0.6652993,60558.0,60557.0,0.000818]
[1728577966496,0.7667993,60558.0,60557.0,0.000818]
[1728577966718,0.7687993,60558.0,60557.0,0.000818]
[1728577966958,0.92760591,60558.0,60557.0,0.000818]
[1728577967666,0.298364,60550.0,60546.0,0.000818]
[1728577967912,0.16516,60547.0,60546.0,0.000818]
[1728577968172,0.32599764,60547.0,60546.0,0.000818]
[1728577970324,0.32699764,60547.0,60546.0,0.000818]
[1728577970573,0.32899764,60547.0,60546.0,0.000818]
[1728577973247,0.37830789,60547.0,60546.0,0.000818]
[1728577974009,0.32899764,60547.0,60546.0,0.000818]
[1728577974234,0.42767191,60547.0,60546.0,0.000818]
[1728577975030,0.32899764,60547.0,60546.0,0.000818]
[1728577975295,0.48980425,60547.0,60546.0,0.000818]
[1728577977081,0.48980425,60547.0,60531.0,0.165204]
[1728577977082,0.18745151,60538.0,60531.0,0.165204]
[1728577977326,0.165196,60534.0,60531.0,0.165204]
[1728577977577,0.165196,60534.0,60528.0,0.36832223]
[1728577977578,0.16083764,60533.0,60532.0,0.00899294]
[1728577978811,0.16083764,60533.0,60532.0,0.17419394]
[1728577979043,0.16083764,60533.0,60532.0,0.00899294]
[1728577979275,0.16183764,60533.0,60532.0,0.00899294]
[1728577979544,0.16183764,60533.0,60526.0,0.330435]
[1728577979776,0.16183764,60533.0,60532.0,0.00902892]
[1728577980061,0.165205,60531.0,60528.0,0.165211]
[1728577980320,0.18745151,60528.0,60523.0,0.0792]
[1728577980574,0.16083764,60530.0,60529.0,0.00905229]
[1728577980830,0.1770214,60530.0,60527.0,0.26143]
[1728577981058,0.16083764,60530.0,60529.0,0.16521]
[1728577981332,0.16083764,60530.0,60528.0,0.00906053]
[1728577981590,0.16083764,60530.0,60529.0,0.00905274]
[1728577981855,0.24532556,60530.0,60529.0,0.17426274]
[1728577982120,0.40404464,60530.0,60529.0,0.01134995]
[1728577982374,0.59149615,60530.0,60529.0,0.01134995]
[1728577982616,0.165211,60529.0,60527.0,0.000817]
[1728577982855,0.165212,60528.0,60527.0,0.000817]
[1728577983375,0.59810009,60528.0,60527.0,0.000817]
[1728577983637,0.35127386,60528.0,60527.0,0.000817]
[1728577984632,0.43117386,60528.0,60527.0,0.000817]
[1728577985547,0.44017386,60528.0,60527.0,0.000817]